fUST/lending_fUST_20241201
["ID","MTS","AMOUNT","RATE_DAILY","PERIOD"]
[343891619,1733004642677,-500.0,0.00025205,3]
[343891620,1733004642687,-500.0,0.00025205,3]
[343891621,1733004642697,-1000.0,0.00025205,10]
[343891622,1733004642706,-974.45,0.00025205,3]
[343891623,1733004642716,-500.0,0.00025205,3]
[343891624,1733004642726,-500.0,0.00025205,3]
[343891626,1733004642736,-884.23,0.00025205,3]
[343891627,1733004642745,-500.0,0.00025205,3]
[343891628,1733004642755,-500.0,0.00025205,3]
[343891629,1733004642764,-500.0,0.00025205,3]
[343891630,1733004642773,-230.14,0.00025205,3]
[343891631,1733004642783,-500.0,0.00025205,3]
[343891632,1733004642792,-500.0,0.00025205,3]
[343891633,1733004642802,-500.0,0.00025205,3]
[343891634,1733004642811,-594.77059027,0.00025205,3]
[343891635,1733004642821,-500.0,0.00025205,3]
[343891636,1733004642830,-821.66,0.00025205,3]
[343891637,1733004642839,-500.0,0.00025205,3]
[343891638,1733004642849,-656.68,0.00025205,3]
[343891639,1733004642858,-200.0,0.00025205,3]
[343891640,1733004642867,-500.0,0.00025205,3]
[343891641,1733004642876,-500.0,0.00025205,3]
[343891642,1733004642889,-500.0,0.00025205,3]
[343891643,1733004642900,-500.0,0.00025205,3]
[343891644,1733004642909,-550.42285239,0.00025205,3]
[343891645,1733004642918,-534.75429656,0.00025205,3]
[343891646,1733004642928,-500.0,0.00025205,3]
[343891647,1733004642937,-500.0,0.00025205,3]
[343891648,1733004642946,-500.0,0.00025205,3]
[343891649,1733004642956,-665.13,0.00025205,3]
[343891650,1733004642966,-321.2550456,0.00025205,3]
[343891651,1733004642975,-500.0,0.00025205,3]
[343891652,1733004642985,-504.43015832,0.00025205,3]
[343891653,1733004642995,-581.04,0.00025205,3]
[343891654,1733004643004,-500.0,0.00025205,3]
[343891655,1733004643013,-500.0,0.00025205,3]
[343891656,1733004643023,-953.96,0.00025205,3]
[343891657,1733004643033,-1744.41,0.00025205,3]
[343891658,1733004643042,-1703.16,0.00025205,3]
[343891659,1733004643052,-500.0,0.00025205,3]
[343891660,1733004643061,-1189.03,0.00025205,3]
[343891661,1733004643071,-500.0,0.00025205,3]
[343891662,1733004643081,-500.0,0.00025205,3]
[343891663,1733004643091,-500.0,0.00025205,3]
[343891664,1733004643100,-1534.89,0.00025205,3]
[343891665,1733004643110,-500.0,0.00025205,3]
[343891666,1733004643120,-500.0,0.00025205,3]
[343891667,1733004643129,-500.0,0.00025205,3]
[343891668,1733004643138,-506.70987085,0.00025205,3]
[343891669,1733004643147,-503.75,0.00025205,3]
[343891670,1733004643157,-500.0,0.00025205,3]
[343891671,1733004643166,-500.0,0.00025205,3]
[343891672,1733004643175,-500.0,0.00025205,3]
[343891673,1733004643185,-500.0,0.00025205,3]
[343891674,1733004643195,-500.0,0.00025205,3]
[343891675,1733004643206,-500.0,0.00025205,3]
[343891676,1733004643218,-561.55,0.00025205,3]
[343891677,1733004643228,-500.0,0.00025205,3]
[343891678,1733004643237,-500.0,0.00025205,3]
[343891679,1733004643247,-200.0,0.00025205,3]
[343891680,1733004643258,-724.23,0.00025205,3]
[343891681,1733004643268,-309.2923842,0.00025205,3]
[343891682,1733004643278,-583.15,0.00025205,3]
[343891683,1733004643287,-2481.72,0.00025205,3]
[343891684,1733004643300,-538.23305437,0.00025205,2]
[343891685,1733004643384,-500.0,0.00025205,3]
[343891686,1733004643394,-500.0,0.00025205,3]
[343891688,1733004643403,-3056.09,0.00025205,3]
[343891689,1733004643413,-500.0,0.00025205,3]
[343891690,1733004643423,-868.94,0.00025205,3]
[343891691,1733004643432,-500.0,0.00025205,3]
[343891692,1733004643442,-678.01,0.00025205,3]
[343891693,1733004643451,-500.0,0.00025205,3]
[343891695,1733004643462,-628.97,0.00025205,3]
[343891697,1733004643471,-1380.11,0.00025205,3]
[343891699,1733004643481,-701.26,0.00025205,3]
[343891701,1733004643490,-500.0,0.00025205,3]
[343891702,1733004643500,-500.0,0.00025205,3]
[343891703,1733004643509,-1174.8,0.00025205,3]
[343891704,1733004643519,-500.0,0.00025205,3]
[343891705,1733004643528,-910.31,0.00025205,3]
[343891706,1733004643537,-500.0,0.00025205,3]
[343891707,1733004643546,-1495.14,0.00025205,3]
[343891708,1733004643556,-500.0,0.00025205,3]
[343891709,1733004643565,-500.0,0.00025205,3]
[343891710,1733004643575,-648.85,0.00025205,3]
[343891711,1733004643584,-500.0,0.00025205,3]
[343891712,1733004643594,-500.0,0.00025205,3]
[343891713,1733004643603,-1701.11,0.00025205,3]
[343891714,1733004643612,-500.0,0.00025205,3]
[343891715,1733004643622,-500.0,0.00025205,3]
[343891716,1733004643632,-500.0,0.00025205,3]
[343891717,1733004643641,-500.0,0.00025205,3]
[343891718,1733004643650,-500.0,0.00025205,3]
[343891719,1733004643660,-500.0,0.00025205,3]
[343891721,1733004643670,-725.62,0.00025205,3]
[343891722,1733004643679,-500.0,0.00025205,3]
[343891723,1733004643689,-2197.46,0.00025205,3]
[343891724,1733004643698,-1063.13,0.00025205,3]
[343891725,1733004643709,-3353.41,0.00025205,3]
[343891726,1733004643718,-500.0,0.00025205,3]
[343891728,1733004643727,-500.0,0.00025205,3]
[343891729,1733004643737,-553.99,0.00025205,3]
[343891731,1733004643747,-500.0,0.00025205,3]
[343891732,1733004643756,-592.23,0.00025205,3]
[343891733,1733004643765,-500.0,0.00025205,3]
[343891735,1733004643779,-500.0,0.00025205,3]
[343891736,1733004643788,-500.0,0.00025205,3]
[343891737,1733004643798,-500.0,0.00025205,3]
[343891738,1733004643807,-631.89,0.00025205,3]
[343891739,1733004643817,-174.219893,0.00025205,7]
[343891740,1733004643826,-174.219893,0.00025205,7]
[343891741,1733004643836,-500.0,0.00025205,3]
[343891742,1733004643845,-174.219893,0.00025205,7]
[343891743,1733004643855,-174.219899,0.00025205,7]
[343891744,1733004643864,-500.0,0.00025205,2]
[343891745,1733004643873,-500.0,0.00025205,3]
[343891746,1733004643883,-500.0,0.00025205,3]
[343891747,1733004643897,-233.278511,0.00025205,7]
[343891748,1733004643907,-233.278511,0.00025205,7]
[343891749,1733004643917,-233.278511,0.00025205,7]
[343891750,1733004643927,-500.0,0.00025205,3]
[343891751,1733004643937,-500.0,0.00025205,3]
[343891752,1733004643947,-1101.41,0.00025205,2]
[343891753,1733004643956,-500.0,0.00025205,3]
[343891754,1733004643968,-233.278511,0.00025205,7]
[343891755,1733004643978,-233.278511,0.00025205,7]
[343891756,1733004643987,-1903.85,0.00025205,3]
[343891758,1733004643997,-233.278515,0.00025205,7]
[343891759,1733004644006,-500.0,0.00025205,3]
[343891760,1733004644016,-500.0,0.00025205,3]
[343891761,1733004644025,-500.0,0.00025205,3]
[343891762,1733004644034,-500.0,0.00025205,3]
[343891763,1733004644044,-494.52148,0.00025205,3]
[343891764,1733004644054,-500.0,0.00025205,3]
[343891765,1733004644063,-542.38,0.00025205,3]
[343891766,1733004644073,-562.24,0.00025205,3]
[343891767,1733004644082,-500.0,0.00025205,3]
[343891768,1733004644091,-500.0,0.00025205,3]
[343891769,1733004644100,-500.0,0.00025205,3]
[343891770,1733004644110,-1954.29,0.00025205,3]
[343891771,1733004644120,-500.0,0.00025205,3]
[343891772,1733004644130,-787.16,0.00025205,3]
[343891773,1733004644139,-500.0,0.00025205,3]
[343891774,1733004644149,-502.65,0.00025205,3]
[343891775,1733004644158,-500.0,0.00025205,3]
[343891776,1733004644168,-500.0,0.00025205,3]
[343891777,1733004644178,-500.0,0.00025205,3]
[343891778,1733004644187,-500.0,0.00025205,3]
[343891779,1733004644197,-500.0,0.00025205,3]
[343891780,1733004644207,-500.0,0.00025205,3]
[343891781,1733004644217,-500.0,0.00025205,3]
[343891782,1733004644226,-2790.51,0.00025205,3]
[343891783,1733004644236,-500.0,0.00025205,3]
[343891784,1733004644246,-659.06,0.00025205,3]
[343891785,1733004644255,-500.0,0.00025205,3]
[343891786,1733004644264,-500.0,0.00025205,3]
[343891787,1733004644274,-500.0,0.00025205,3]
[343891788,1733004644283,-2637.41,0.00025205,3]
[343891789,1733004644293,-500.0,0.00025205,3]
[343891790,1733004644302,-500.0,0.00025205,3]
[343891791,1733004644311,-674.25,0.00025205,3]
[343891792,1733004644322,-500.0,0.00025205,3]
[343891793,1733004644331,-500.0,0.00025205,3]
[343891794,1733004644341,-500.0,0.00025205,3]
[343891795,1733004644351,-500.0,0.00025205,3]
[343891796,1733004644360,-500.0,0.00025205,3]
[343891797,1733004644369,-1701.82,0.00025205,3]
[343891798,1733004644378,-658.33,0.00025205,3]
[343891799,1733004644387,-756.89,0.00025205,3]
[343891800,1733004644396,-500.0,0.00025205,3]
[343891801,1733004644406,-500.0,0.00025205,3]
[343891802,1733004644415,-500.0,0.00025205,3]
[343891803,1733004644425,-1240.85,0.00025205,3]
[343891804,1733004644435,-500.0,0.00025205,3]
[343891805,1733004644445,-2080.07,0.00025205,3]
[343891806,1733004644454,-526.62,0.00025205,3]
[343891807,1733004644465,-500.0,0.00025205,3]
[343891808,1733004644474,-500.0,0.00025205,3]
[343891809,1733004644484,-753.75,0.00025205,3]
[343891810,1733004644493,-2933.37,0.00025205,3]
[343891811,1733004644502,-500.0,0.00025205,3]
[343891812,1733004644511,-6588.74,0.00025205,3]
[343891813,1733004644521,-1396.58,0.00025205,3]
[343891814,1733004644530,-500.0,0.00025205,3]
[343891815,1733004644539,-222.68337198,0.00025205,3]
[343891816,1733004644549,-500.0,0.00025205,3]
[343891817,1733004644559,-500.0,0.00025205,3]
[343891818,1733004644568,-500.0,0.00025205,3]
[343891819,1733004644577,-500.0,0.00025205,3]
[343891820,1733004644587,-524.46,0.00025205,3]
[343891821,1733004644596,-500.0,0.00025205,3]
[343891822,1733004644605,-1724.99,0.00025205,3]
[343891823,1733004644614,-3339.25,0.00025205,3]
[343891824,1733004644623,-500.0,0.00025205,3]
[343891825,1733004644633,-738.57,0.00025205,3]
[343891826,1733004644642,-500.0,0.00025205,3]
[343891827,1733004644651,-521.03,0.00025205,3]
[343891828,1733004644661,-811.37,0.00025205,3]
[343891829,1733004644670,-1157.48,0.00025205,3]
[343891830,1733004644680,-543.81,0.00025205,3]
[343891831,1733004644689,-170.97900503,0.00025205,3]
[343891832,1733004644698,-500.0,0.00025205,3]
[343891833,1733004644710,-500.0,0.00025205,3]
[343891834,1733004644723,-1336.56,0.00025205,3]
[343891835,1733004644732,-500.0,0.00025205,3]
[343891836,1733004644741,-319.48771667,0.00025205,3]
[343891837,1733004644751,-615.55017266,0.00025205,3]
[343891838,1733004644761,-151.0,0.00025205,7]
[343891839,1733004644771,-1503.46,0.00025205,3]
[343891840,1733004644780,-151.0,0.00025205,7]
[343891841,1733004644789,-500.0,0.00025205,3]
[343891842,1733004644798,-1169.27083333,0.00025205,7]
[343891843,1733004644807,-327.23763201,0.00025221,2]
[343891844,1733004644816,-302.69733596,0.0002525,2]
[343891845,1733004644827,-300.0,0.000254,2]
[343891846,1733004644836,-300.0,0.000254,2]
[343891847,1733004644846,-300.0,0.000254,2]
[343891848,1733004644855,-5000.0,0.00025402,7]
[343891849,1733004644864,-754.18631332,0.00025405,2]
[343891850,1733004644874,-2934.0,0.00025431,2]
[343891851,1733004644883,-900.0,0.00025469,3]
[343891852,1733004644897,-150.17,0.00025479,3]
[343891853,1733004644907,-439.31638399,0.00025479,3]
[343891854,1733004644916,-500.0,0.00025479,3]
[343891855,1733004644925,-500.0,0.00025479,3]
[343891856,1733004644934,-500.0,0.00025479,3]
[343891857,1733004645004,-500.0,0.00025479,3]
[343891858,1733004645023,-500.0,0.00025479,3]
[343891859,1733004645032,-500.0,0.00025479,3]
[343891860,1733004645042,-500.0,0.00025479,3]
[343891861,1733004645051,-500.0,0.00025479,3]
[343891862,1733004645061,-500.0,0.00025479,3]
[343891863,1733004645071,-500.0,0.00025479,3]
[343891864,1733004645080,-500.87558287,0.00025479,3]
[343891865,1733004645090,-500.0,0.00025479,3]
[343891866,1733004645099,-500.0,0.00025479,3]
[343891867,1733004645109,-500.0,0.00025479,3]
[343891868,1733004645119,-500.0,0.00025479,3]
[343891869,1733004645128,-500.0,0.00025479,3]
[343891870,1733004645137,-1069.12,0.00025479,3]
[343891871,1733004645146,-500.0,0.00025479,3]
[343891872,1733004645155,-737.28,0.00025479,3]
[343891873,1733004645165,-508.03,0.00025479,3]
[343891874,1733004645174,-500.0,0.00025479,3]
[343891875,1733004645183,-1026.82,0.00025479,3]
[343891876,1733004645193,-500.0,0.00025479,3]
[343891877,1733004645203,-917.89,0.00025479,3]
[343891878,1733004645213,-500.0,0.00025479,3]
[343891879,1733004645223,-500.0,0.00025479,3]
[343891880,1733004645233,-500.0,0.00025479,3]
[343891881,1733004645242,-500.0,0.00025479,3]
[343891882,1733004645251,-530.65312285,0.00025479,3]
[343891883,1733004645261,-500.0,0.00025479,3]
[343891884,1733004645270,-946.45,0.00025479,3]
[343891885,1733004645279,-423.95021311,0.00025479,3]
[343891886,1733004645288,-500.0,0.00025479,3]
[343891887,1733004645298,-500.0,0.00025479,3]
[343891888,1733004645308,-817.71,0.00025479,3]
[343891889,1733004645317,-550.10462257,0.00025479,3]
[343891890,1733004645327,-500.0,0.00025479,3]
[343891891,1733004645336,-2297.0,0.00025479,3]
[343891892,1733004645345,-500.0,0.00025479,3]
[343891893,1733004645355,-663.59,0.00025479,3]
[343891894,1733004645363,-1478.9,0.00025479,3]
[343891895,1733004645373,-500.0,0.00025479,3]
[343891896,1733004645383,-219.99808081,0.00025479,3]
[343891897,1733004645392,-1000.0,0.00025479,10]
[343891898,1733004645401,-974.45,0.00025479,3]
[343891899,1733004645411,-500.0,0.00025479,3]
[343891900,1733004645420,-500.0,0.00025479,3]
[343891901,1733004645429,-884.23,0.00025479,3]
[343891902,1733004645438,-500.0,0.00025479,3]
[343891903,1733004645447,-500.0,0.00025479,3]
[343891904,1733004645457,-500.0,0.00025479,3]
[343891905,1733004645467,-500.0,0.00025479,3]
[343891906,1733004645476,-500.0,0.00025479,3]
[343891907,1733004645485,-500.0,0.00025479,3]
[343891908,1733004645494,-821.66,0.00025479,3]
[343891909,1733004645503,-656.68,0.00025479,3]
[343891910,1733004645513,-500.0,0.00025479,3]
[343891911,1733004645522,-200.0,0.00025479,3]
[343891912,1733004645532,-500.0,0.00025479,3]
[343891913,1733004645541,-500.0,0.00025479,3]
[343891914,1733004645550,-500.0,0.00025479,3]
[343891915,1733004645560,-500.0,0.00025479,3]
[343891916,1733004645569,-500.0,0.00025479,3]
[343891917,1733004645578,-500.0,0.00025479,3]
[343891918,1733004645588,-500.0,0.00025479,3]
[343891919,1733004645598,-665.13,0.00025479,3]
[343891920,1733004645607,-507.27646626,0.00025479,3]
[343891921,1733004645617,-581.04,0.00025479,3]
[343891922,1733004645626,-500.0,0.00025479,3]
[343891923,1733004645636,-500.0,0.00025479,3]
[343891924,1733004645645,-953.96,0.00025479,3]
[343891925,1733004645655,-1744.41,0.00025479,3]
[343891926,1733004645664,-1703.16,0.00025479,3]
[343891927,1733004645673,-500.0,0.00025479,3]
[343891928,1733004645683,-1189.03,0.00025479,3]
[343891929,1733004645692,-318.39270935,0.00025479,3]
[343891930,1733004645702,-325.89,0.00025479,3]
[343891931,1733004645712,-500.0,0.00025479,3]
[343891932,1733004645721,-1534.89,0.00025479,3]
[343891933,1733004645730,-500.0,0.00025479,3]
[343891934,1733004645739,-500.0,0.00025479,3]
[343891935,1733004645749,-535.46484069,0.00025479,3]
[343891936,1733004645758,-503.75,0.00025479,3]
[343891937,1733004645769,-500.0,0.00025479,3]
[343891938,1733004645779,-500.0,0.00025479,3]
[343891939,1733004645788,-500.0,0.00025479,3]
[343891940,1733004645798,-500.0,0.00025479,3]
[343891941,1733004645808,-500.0,0.00025479,3]
[343891942,1733004645817,-500.0,0.00025479,3]
[343891943,1733004645826,-330.04237748,0.00025479,3]
[343891946,1733004645836,-561.55,0.00025479,3]
[343891949,1733004645845,-500.0,0.00025479,3]
[343891952,1733004645854,-200.0,0.00025479,3]
[343891954,1733004645863,-724.23,0.00025479,3]
[343891956,1733004645872,-583.15,0.00025479,3]
[343891957,1733004645882,-2481.72,0.00025479,3]
[343891959,1733004645893,-500.0,0.00025479,3]
[343891961,1733004645903,-500.0,0.00025479,3]
[343891963,1733004645912,-3056.09,0.00025479,3]
[343891965,1733004645922,-500.0,0.00025479,3]
[343891968,1733004645932,-868.94,0.00025479,3]
[343891970,1733004645941,-302.87452732,0.00025479,3]
[343891973,1733004645951,-678.01,0.00025479,3]
[343891974,1733004645960,-316.32,0.00025479,3]
[343891975,1733004645970,-628.97,0.00025479,3]
[343891976,1733004645981,-1380.11,0.00025479,3]
[343891977,1733004645990,-701.26,0.00025479,3]
[343891978,1733004645999,-500.0,0.00025479,3]
[343891979,1733004646009,-500.0,0.00025479,3]
[343891980,1733004646019,-1174.8,0.00025479,3]
[343891981,1733004646029,-500.0,0.00025479,3]
[343891982,1733004646039,-910.31,0.00025479,3]
[343891984,1733004646048,-500.0,0.00025479,3]
[343891986,1733004646057,-1495.14,0.00025479,3]
[343891988,1733004646067,-500.0,0.00025479,3]
[343891989,1733004646076,-500.0,0.00025479,3]
[343891990,1733004646085,-648.85,0.00025479,3]
[343891991,1733004646095,-500.0,0.00025479,3]
[343891992,1733004646104,-500.0,0.00025479,3]
[343891993,1733004646114,-1701.11,0.00025479,3]
[343891994,1733004646123,-500.0,0.00025479,3]
[343891995,1733004646133,-500.0,0.00025479,3]
[343891996,1733004646144,-500.0,0.00025479,3]
[343891997,1733004646153,-500.0,0.00025479,3]
[343891998,1733004646165,-500.0,0.00025479,3]
[343892000,1733004646174,-500.0,0.00025479,3]
[343892002,1733004646183,-725.62,0.00025479,3]
[343892004,1733004646193,-500.0,0.00025479,3]
[343892005,1733004646201,-2197.46,0.00025479,3]
[343892007,1733004646211,-1063.13,0.00025479,3]
[343892009,1733004646221,-3353.41,0.00025479,3]
[343892010,1733004646230,-501.27364895,0.00025479,3]
[343892011,1733004646240,-500.0,0.00025479,3]
[343892012,1733004646249,-553.99,0.00025479,3]
[343892013,1733004646258,-500.0,0.00025479,3]
[343892014,1733004646267,-592.23,0.00025479,3]
[343892015,1733004646276,-500.0,0.00025479,3]
[343892016,1733004646284,-500.0,0.00025479,3]
[343892017,1733004646294,-500.0,0.00025479,3]
[343892019,1733004646303,-500.0,0.00025479,3]
[343892020,1733004646312,-631.89,0.00025479,3]
[343892021,1733004646322,-500.0,0.00025479,3]
[343892022,1733004646331,-281.19023386,0.00025479,2]
[343892023,1733004646340,-500.0,0.00025479,3]
[343892024,1733004646349,-500.0,0.00025479,3]
[343892025,1733004646359,-500.0,0.00025479,3]
[343892026,1733004646368,-500.0,0.00025479,3]
[343892027,1733004646377,-1101.41,0.00025479,2]
[343892028,1733004646386,-500.0,0.00025479,3]
[343892029,1733004646396,-1903.85,0.00025479,3]
[343892030,1733004646405,-241.81,0.00025479,3]
[343892031,1733004646414,-500.0,0.00025479,3]
[343892032,1733004646423,-500.0,0.00025479,3]
[343892036,1733004646496,-500.0,0.00025479,3]
[343892037,1733004646506,-500.0,0.00025479,3]
[343892038,1733004646516,-197.50135057,0.00025479,3]
[343892039,1733004646714,-344.87864943,0.00025479,3]
[343892040,1733004646723,-562.24,0.00025479,3]
[343892041,1733004646731,-500.0,0.00025479,3]
[343892042,1733004646741,-500.0,0.00025479,3]
[343892043,1733004646750,-500.0,0.00025479,3]
[343892044,1733004646760,-294.80186968,0.00025479,3]
[343892045,1733004646771,-1659.48813032,0.00025479,3]
[343892046,1733004646781,-500.0,0.00025479,3]
[343892047,1733004646791,-787.16,0.00025479,3]
[343892048,1733004646800,-316.02,0.00025479,3]
[343892049,1733004646809,-502.65,0.00025479,3]
[343892050,1733004646819,-500.0,0.00025479,3]
[343892051,1733004646828,-500.0,0.00025479,3]
[343892052,1733004646838,-500.0,0.00025479,3]
[343892053,1733004646847,-500.0,0.00025479,3]
[343892054,1733004646856,-500.0,0.00025479,3]
[343892055,1733004646866,-500.0,0.00025479,3]
[343892056,1733004646875,-2790.51,0.00025479,3]
[343892057,1733004646884,-500.0,0.00025479,3]
[343892058,1733004646897,-659.06,0.00025479,3]
[343892059,1733004646906,-500.0,0.00025479,3]
[343892060,1733004646916,-500.0,0.00025479,3]
[343892061,1733004646925,-500.0,0.00025479,3]
[343892062,1733004646934,-2637.41,0.00025479,3]
[343892063,1733004646943,-500.0,0.00025479,3]
[343892064,1733004646952,-500.0,0.00025479,3]
[343892065,1733004646963,-674.25,0.00025479,3]
[343892066,1733004646973,-500.0,0.00025479,3]
[343892067,1733004646983,-500.0,0.00025479,3]
[343892068,1733004646992,-500.0,0.00025479,3]
[343892069,1733004647001,-446.26,0.00025479,3]
[343892070,1733004647011,-500.0,0.00025479,3]
[343892071,1733004647020,-1701.82,0.00025479,3]
[343892072,1733004647030,-658.33,0.00025479,3]
[343892073,1733004647039,-756.89,0.00025479,3]
[343892074,1733004647048,-500.0,0.00025479,3]
[343892075,1733004647057,-500.0,0.00025479,3]
[343892076,1733004647067,-1240.85,0.00025479,3]
[343892077,1733004647076,-500.0,0.00025479,3]
[343892078,1733004647085,-2080.07,0.00025479,3]
[343892079,1733004647095,-526.62,0.00025479,3]
[343892080,1733004647104,-500.0,0.00025479,3]
[343892081,1733004647113,-500.0,0.00025479,3]
[343892082,1733004647123,-753.75,0.00025479,3]
[343892083,1733004647131,-2933.37,0.00025479,3]
[343892084,1733004647141,-500.0,0.00025479,3]
[343892085,1733004647150,-6588.74,0.00025479,3]
[343892086,1733004647159,-1396.58,0.00025479,3]
[343892087,1733004647168,-500.0,0.00025479,3]
[343892088,1733004647177,-500.0,0.00025479,3]
[343892089,1733004647186,-500.0,0.00025479,3]
[343892090,1733004647195,-500.0,0.00025479,3]
[343892091,1733004647205,-500.0,0.00025479,3]
[343892092,1733004647217,-524.46,0.00025479,3]
[343892093,1733004647226,-396.95148768,0.00025479,3]
[343892094,1733004647377,-103.04851232,0.00025479,3]
[343892095,1733004647387,-203.1994775,0.00025479,3]
[343892096,1733004647399,-1521.7905225,0.00025479,3]
[343892097,1733004647408,-3339.25,0.00025479,3]
[343892098,1733004647417,-500.0,0.00025479,3]
[343892099,1733004647426,-738.57,0.00025479,3]
[343892100,1733004647435,-500.0,0.00025479,3]
[343892101,1733004647444,-521.03,0.00025479,3]
[343892102,1733004647454,-811.37,0.00025479,3]
[343892103,1733004647464,-1157.48,0.00025479,3]
[343892104,1733004647473,-536.85994118,0.00025479,3]
[343892105,1733004647482,-299.92778147,0.00025479,3]
[343892106,1733004647491,-245.19875546,0.00025479,3]
[343892107,1733004647503,-1091.36124454,0.00025479,3]
[343892108,1733004647512,-500.0,0.00025479,3]
[343892109,1733004647521,-1503.46,0.00025479,3]
[343892110,1733004647531,-500.0,0.00025479,3]
[343892111,1733004647540,-302.69733596,0.000255,2]
[343892112,1733004647549,-1000.0,0.00025521,2]
[343892113,1733004647558,-1000.0,0.00025521,2]
[343892114,1733004647568,-1000.0,0.00025521,2]
[343892115,1733004647578,-1000.0,0.00025521,2]
[343892116,1733004647587,-1002.89504957,0.00025521,2]
[343892117,1733004647596,-157.42182974,0.00025521,2]
[343892118,1733004647606,-1000.0,0.00025521,2]
[343892119,1733004647615,-952.10051686,0.00025521,2]
[343892120,1733004647624,-1000.0,0.00025521,2]
[343892121,1733004647633,-446.13968757,0.00025521,2]
[343892122,1733004647642,-1090.91822864,0.00025522,2]
[343892123,1733004647651,-518.0,0.00025646,2]
[343892124,1733004647661,-302.69733596,0.0002575,2]
[343892125,1733004647671,-150.17,0.00025753,3]
[343892126,1733004647680,-500.0,0.00025753,3]
[343892127,1733004647689,-500.0,0.00025753,3]
[343892128,1733004647698,-500.0,0.00025753,3]
[343892129,1733004647708,-500.0,0.00025753,3]
[343892130,1733004647719,-500.0,0.00025753,3]
[343892131,1733004647729,-500.0,0.00025753,3]
[343892132,1733004647739,-500.0,0.00025753,3]
[343892133,1733004647748,-500.0,0.00025753,3]
[343892134,1733004647757,-500.0,0.00025753,3]
[343892135,1733004647767,-500.0,0.00025753,3]
[343892136,1733004647777,-500.0,0.00025753,3]
[343892137,1733004647787,-316.36260382,0.00025753,3]
[343892138,1733004647867,-500.0,0.00025753,3]
[343892139,1733004647877,-500.0,0.00025753,3]
[343892140,1733004647887,-1069.12,0.00025753,3]
[343892141,1733004647901,-506.87215445,0.00025753,3]
[343892142,1733004647910,-737.28,0.00025753,3]
[343892143,1733004647919,-508.03,0.00025753,3]
[343892144,1733004647929,-500.0,0.00025753,3]
[343892145,1733004647939,-1026.82,0.00025753,3]
[343892146,1733004647949,-500.0,0.00025753,3]
[343892147,1733004647959,-917.89,0.00025753,3]
[343892148,1733004647971,-500.0,0.00025753,3]
[343892149,1733004647981,-500.0,0.00025753,3]
[343892150,1733004647990,-500.0,0.00025753,3]
[343892151,1733004648001,-500.0,0.00025753,3]
[343892152,1733004648011,-500.0,0.00025753,3]
[343892153,1733004648021,-946.45,0.00025753,3]
[343892154,1733004648031,-500.0,0.00025753,3]
[343892155,1733004648041,-500.0,0.00025753,3]
[343892156,1733004648051,-817.71,0.00025753,3]
[343892157,1733004648061,-500.0,0.00025753,3]
[343892158,1733004648071,-2297.0,0.00025753,3]